[Event "*** SCC Grand Prix: Titled Tuesday Blitz"]
[Site "Chess.com"]
[Date "2020.10.06"]
[Round "4"]
[White "ehrenfeld"]
[Black "NMZanette"]
[Result "1/2-1/2"]
[WhiteElo "2510"]
[BlackElo "2232"]
[TimeControl "180+1"]
[EndTime "10:39:33 PDT"]
[Termination "Game drawn by repetition"]

1. e4 {[%clk 0:03:00.9]} 1... e5 {[%clk 0:02:59.1]} 2. Nc3 {[%clk 0:03:00.4]}
2... Nf6 {[%clk 0:02:58.2]} 3. f4 {[%clk 0:02:59.8]} 3... d5 {[%clk 0:02:57]} 4.
fxe5 {[%clk 0:02:59.7]} 4... Nxe4 {[%clk 0:02:57]} 5. Qf3 {[%clk 0:03:00.2]}
5... Nxc3 {[%clk 0:02:54.9]} 6. bxc3 {[%clk 0:03:00.4]} 6... c5 {[%clk
0:02:53.2]} 7. Bb5+ {[%clk 0:02:59.8]} 7... Nc6 {[%clk 0:02:52.6]} 8. Qg3 {[%clk
0:02:58.9]} 8... Be6 {[%clk 0:02:48.6]} 9. Ne2 {[%clk 0:02:55.6]} 9... Qb6
{[%clk 0:02:34.4]} 10. a4 {[%clk 0:02:55]} 10... a6 {[%clk 0:02:33.7]} 11. Bxc6+
{[%clk 0:02:54.2]} 11... Qxc6 {[%clk 0:02:32.9]} 12. O-O {[%clk 0:02:49.8]}
12... O-O-O {[%clk 0:02:31.9]} 13. d4 {[%clk 0:02:49.1]} 13... c4 {[%clk
0:02:16.8]} 14. Ba3 {[%clk 0:02:41]} 14... Bxa3 {[%clk 0:02:13.2]} 15. Rxa3
{[%clk 0:02:40.8]} 15... g5 {[%clk 0:02:07.3]} 16. Qxg5 {[%clk 0:02:36.9]} 16...
Rhg8 {[%clk 0:02:00.5]} 17. Qe3 {[%clk 0:02:36.2]} 17... Rg4 {[%clk 0:01:50.6]}
18. Rf4 {[%clk 0:02:34.3]} 18... Rg6 {[%clk 0:01:45.6]} 19. Rf2 {[%clk
0:02:32.2]} 19... Rdg8 {[%clk 0:01:44.7]} 20. Nf4 {[%clk 0:02:31.3]} 20... Rg4
{[%clk 0:01:43.4]} 21. Ra1 {[%clk 0:02:30]} 21... Bf5 {[%clk 0:01:36.7]} 22. a5
{[%clk 0:01:47.2]} 22... Be4 {[%clk 0:01:34.6]} 23. Rb1 {[%clk 0:01:47.1]} 23...
Qh6 {[%clk 0:01:34.1]} 24. Rb6 {[%clk 0:01:35]} 24... Qh4 {[%clk 0:00:45.4]} 25.
Rf6 {[%clk 0:01:26.6]} 25... Qg5 {[%clk 0:00:25.1]} 26. g3 {[%clk 0:01:19.9]}
26... h5 {[%clk 0:00:24.2]} 27. Ng2 {[%clk 0:01:13.2]} 27... Qg7 {[%clk
0:00:22.8]} 28. Rxf7 {[%clk 0:01:10.6]} 28... Qg6 {[%clk 0:00:20.7]} 29. Rf8+
{[%clk 0:01:09.3]} 29... Rxf8 {[%clk 0:00:18]} 30. Rxf8+ {[%clk 0:01:08.1]}
30... Kc7 {[%clk 0:00:18.7]} 31. Rf6 {[%clk 0:01:03.6]} 31... Qg7 {[%clk
0:00:18.3]} 32. Rf4 {[%clk 0:01:01.4]} 32... h4 {[%clk 0:00:17.4]} 33. Nxh4
{[%clk 0:00:52.3]} 33... Rg5 {[%clk 0:00:12]} 34. Rf7+ {[%clk 0:00:44.1]} 34...
Qxf7 {[%clk 0:00:11.2]} 35. Qxg5 {[%clk 0:00:44.7]} 35... Qd7 {[%clk 0:00:08.1]}
36. g4 {[%clk 0:00:20.1]} 36... Qa4 {[%clk 0:00:07.7]} 37. Qd2 {[%clk
0:00:17.8]} 37... Qa1+ {[%clk 0:00:07.5]} 38. Kf2 {[%clk 0:00:16.8]} 38... Qxa5
{[%clk 0:00:06.5]} 39. Nf5 {[%clk 0:00:13.7]} 39... Qb6 {[%clk 0:00:06.2]} 40.
Nd6 {[%clk 0:00:12.9]} 40... Qb1 {[%clk 0:00:04.4]} 41. h4 {[%clk 0:00:11]}
41... Qh1 {[%clk 0:00:04.4]} 42. Kg3 {[%clk 0:00:10.4]} 42... Qf3+ {[%clk
0:00:02.9]} 43. Kh2 {[%clk 0:00:09.1]} 43... Qh1+ {[%clk 0:00:03.6]} 44. Kg3
{[%clk 0:00:08.5]} 44... Qf3+ {[%clk 0:00:03.6]} 45. Kh2 {[%clk 0:00:08.2]}
45... Qh1+ {[%clk 0:00:03.7]} 46. Kg3 {[%clk 0:00:08.1]} 1/2-1/2

[Event "*** SCC Grand Prix: Titled Tuesday Blitz"]
[Site "Chess.com"]
[Date "2020.10.06"]
[Round "4"]
[White "OldweakGM"]
[Black "RaunakSadhwani2005"]
[Result "1-0"]
[WhiteElo "2830"]
[BlackElo "2909"]
[TimeControl "180+1"]
[EndTime "10:39:37 PDT"]
[Termination "OldweakGM won by resignation"]

1. Nf3 {[%clk 0:03:00.9]} 1... d5 {[%clk 0:02:59.3]} 2. d4 {[%clk 0:03:00.5]}
2... Nf6 {[%clk 0:02:56.9]} 3. Bf4 {[%clk 0:03:00.5]} 3... Bf5 {[%clk
0:02:51.4]} 4. e3 {[%clk 0:02:58.6]} 4... e6 {[%clk 0:02:51.5]} 5. c4 {[%clk
0:02:58.7]} 5... Bxb1 {[%clk 0:02:50.9]} 6. Qxb1 {[%clk 0:02:59.6]} 6... Bb4+
{[%clk 0:02:50.9]} 7. Ke2 {[%clk 0:02:57.3]} 7... Bd6 {[%clk 0:02:46.8]} 8. g3
{[%clk 0:02:55.4]} 8... O-O {[%clk 0:02:46.3]} 9. Qc2 {[%clk 0:02:54.6]} 9...
Nbd7 {[%clk 0:02:44.7]} 10. Bg2 {[%clk 0:02:50.9]} 10... Qe7 {[%clk 0:02:40]}
11. Bg5 {[%clk 0:02:27.7]} 11... c6 {[%clk 0:02:27.3]} 12. Rhd1 {[%clk
0:02:21.5]} 12... h6 {[%clk 0:02:25.7]} 13. Bxf6 {[%clk 0:02:21.1]} 13... Nxf6
{[%clk 0:02:20]} 14. Nd2 {[%clk 0:02:21.2]} 14... h5 {[%clk 0:02:16.9]} 15. h3
{[%clk 0:02:14.9]} 15... Rac8 {[%clk 0:02:15]} 16. Qb3 {[%clk 0:02:11.3]} 16...
Rfe8 {[%clk 0:02:10.9]} 17. Kf1 {[%clk 0:02:10.6]} 17... a6 {[%clk 0:02:04.5]}
18. Rac1 {[%clk 0:02:10.4]} 18... b5 {[%clk 0:02:03.4]} 19. cxd5 {[%clk
0:02:08.9]} 19... cxd5 {[%clk 0:01:53.1]} 20. Rc2 {[%clk 0:02:08.8]} 20... Qd7
{[%clk 0:01:40.4]} 21. Rdc1 {[%clk 0:02:08]} 21... Red8 {[%clk 0:01:32.8]} 22.
Qd3 {[%clk 0:02:00]} 22... g6 {[%clk 0:01:21.4]} 23. Kg1 {[%clk 0:01:59.9]}
23... Qb7 {[%clk 0:01:16]} 24. Bf1 {[%clk 0:01:55]} 24... Bb4 {[%clk 0:01:07.2]}
25. Nf3 {[%clk 0:01:41.5]} 25... Bd6 {[%clk 0:01:04.8]} 26. Nd2 {[%clk
0:01:41.5]} 26... Ne4 {[%clk 0:00:59.7]} 27. Rxc8 {[%clk 0:01:28.2]} 27... Rxc8
{[%clk 0:00:55.3]} 28. Rxc8+ {[%clk 0:01:27.7]} 28... Qxc8 {[%clk 0:00:56.2]}
29. Nxe4 {[%clk 0:01:27.9]} 29... dxe4 {[%clk 0:00:56.7]} 30. Qxe4 {[%clk
0:01:28.2]} 30... Kg7 {[%clk 0:00:54.7]} 31. Qb1 {[%clk 0:01:25.4]} 31... f5
{[%clk 0:00:49.5]} 32. Qd1 {[%clk 0:01:19.1]} 32... Qd8 {[%clk 0:00:44]} 33. h4
{[%clk 0:01:17.9]} 33... Qc8 {[%clk 0:00:41.3]} 34. Bd3 {[%clk 0:01:14.2]} 34...
Be7 {[%clk 0:00:39.8]} 35. Qc2 {[%clk 0:01:12.4]} 35... Qxc2 {[%clk 0:00:38.8]}
36. Bxc2 {[%clk 0:01:12.7]} 36... g5 {[%clk 0:00:33.3]} 37. hxg5 {[%clk
0:01:11.5]} 37... Bxg5 {[%clk 0:00:34.2]} 38. f4 {[%clk 0:01:03.5]} 38... Bd8
{[%clk 0:00:31.6]} 39. Bd1 {[%clk 0:01:03.3]} 39... Kg6 {[%clk 0:00:25.3]} 40.
Bf3 {[%clk 0:01:03.3]} 40... a5 {[%clk 0:00:20.4]} 41. Bc6 {[%clk 0:01:01]}
41... b4 {[%clk 0:00:20.7]} 42. Be8+ {[%clk 0:00:57.8]} 42... Kh6 {[%clk
0:00:20.9]} 43. Bd7 {[%clk 0:00:56.7]} 43... h4 {[%clk 0:00:20.5]} 44. Bxe6
{[%clk 0:00:53.6]} 44... Kg6 {[%clk 0:00:20.9]} 45. g4 {[%clk 0:00:53.9]} 45...
fxg4 {[%clk 0:00:20.7]} 46. Bxg4 {[%clk 0:00:54.2]} 46... a4 {[%clk 0:00:18.9]}
47. Bd1 {[%clk 0:00:49.3]} 47... a3 {[%clk 0:00:18.9]} 48. bxa3 {[%clk
0:00:47.8]} 48... bxa3 {[%clk 0:00:19.8]} 49. Kg2 {[%clk 0:00:48.2]} 49... Bf6
{[%clk 0:00:18.6]} 50. Bg4 {[%clk 0:00:47]} 50... Kf7 {[%clk 0:00:18.2]} 51. Kf3
{[%clk 0:00:46.5]} 51... Ke7 {[%clk 0:00:19.1]} 52. Ke4 {[%clk 0:00:46.6]} 52...
Kd6 {[%clk 0:00:19.4]} 53. Kd3 {[%clk 0:00:47]} 53... Bg7 {[%clk 0:00:19.3]} 54.
e4 {[%clk 0:00:47.4]} 54... Bh6 {[%clk 0:00:19.7]} 55. Ke3 {[%clk 0:00:45.9]}
55... Kc6 {[%clk 0:00:18.9]} 56. Be6 {[%clk 0:00:39.4]} 56... Kb5 {[%clk
0:00:18.3]} 57. e5 {[%clk 0:00:36.8]} 57... Kb4 {[%clk 0:00:17.9]} 58. d5 {[%clk
0:00:35.6]} 58... Kc3 {[%clk 0:00:15.9]} 59. d6 {[%clk 0:00:34.8]} 59... Bf8
{[%clk 0:00:16.8]} 60. Kf3 {[%clk 0:00:34]} 60... Kd4 {[%clk 0:00:15.1]} 61. Bb3
{[%clk 0:00:32.9]} 61... Kc5 {[%clk 0:00:13.7]} 62. Kg4 {[%clk 0:00:32.3]} 1-0

[Event "*** SCC Grand Prix: Titled Tuesday Blitz"]
[Site "Chess.com"]
[Date "2020.10.06"]
[Round "4"]
[White "KyronGriffith"]
[Black "elamier"]
[Result "1-0"]
[WhiteElo "2567"]
[BlackElo "2340"]
[TimeControl "180+1"]
[EndTime "10:39:39 PDT"]
[Termination "KyronGriffith won by resignation"]

1. e4 {[%clk 0:03:00.9]} 1... c5 {[%clk 0:02:59.5]} 2. Nf3 {[%clk 0:03:01.1]}
2... e6 {[%clk 0:02:59.6]} 3. d4 {[%clk 0:03:01.4]} 3... cxd4 {[%clk 0:03:00.1]}
4. Nxd4 {[%clk 0:03:02.3]} 4... Nf6 {[%clk 0:03:00.1]} 5. Nc3 {[%clk 0:03:02.4]}
5... Nc6 {[%clk 0:03:00.2]} 6. Ndb5 {[%clk 0:03:01.8]} 6... Bb4 {[%clk
0:03:00.6]} 7. a3 {[%clk 0:03:02.4]} 7... Bxc3+ {[%clk 0:03:00.5]} 8. Nxc3
{[%clk 0:03:03.3]} 8... d5 {[%clk 0:03:00.8]} 9. exd5 {[%clk 0:03:04.2]} 9...
exd5 {[%clk 0:03:01.1]} 10. Bd3 {[%clk 0:03:04.9]} 10... O-O {[%clk 0:03:00.8]}
11. O-O {[%clk 0:03:05.2]} 11... d4 {[%clk 0:03:01.4]} 12. Ne2 {[%clk
0:03:05.3]} 12... Bg4 {[%clk 0:02:59.9]} 13. Re1 {[%clk 0:03:05.1]} 13... Re8
{[%clk 0:02:56.8]} 14. Bg5 {[%clk 0:03:04.2]} 14... Qd6 {[%clk 0:02:53.6]} 15.
Qd2 {[%clk 0:02:58]} 15... Bxe2 {[%clk 0:02:52.6]} 16. Rxe2 {[%clk 0:02:50]}
16... Rxe2 {[%clk 0:02:49.3]} 17. Qxe2 {[%clk 0:02:50.9]} 17... Re8 {[%clk
0:02:47.8]} 18. Qf3 {[%clk 0:02:50.3]} 18... Ne5 {[%clk 0:02:46.6]} 19. Qg3
{[%clk 0:02:50.5]} 19... Nh5 {[%clk 0:02:44.8]} 20. Qh4 {[%clk 0:02:44.1]} 20...
Nxd3 {[%clk 0:02:43.7]} 21. cxd3 {[%clk 0:02:31.5]} 21... Qg6 {[%clk 0:02:30.8]}
22. h3 {[%clk 0:02:08]} 22... h6 {[%clk 0:02:24.1]} 23. Bd2 {[%clk 0:02:02.9]}
23... Qxd3 {[%clk 0:02:18.8]} 24. Bxh6 {[%clk 0:01:59.2]} 24... Nf6 {[%clk
0:02:05]} 25. Qg5 {[%clk 0:01:46.5]} 25... Qg6 {[%clk 0:02:00.4]} 26. Qxg6
{[%clk 0:01:46.9]} 26... fxg6 {[%clk 0:02:00.4]} 27. Bf4 {[%clk 0:01:43]} 27...
Re2 {[%clk 0:01:59.5]} 28. Rd1 {[%clk 0:01:41]} 28... Rxb2 {[%clk 0:01:36.9]}
29. Rxd4 {[%clk 0:01:41.4]} 29... b5 {[%clk 0:01:32.7]} 30. Rd8+ {[%clk
0:01:35.2]} 30... Kh7 {[%clk 0:01:32]} 31. Ra8 {[%clk 0:01:35.8]} 31... a5
{[%clk 0:01:31.1]} 32. Rxa5 {[%clk 0:01:34.8]} 32... Ne4 {[%clk 0:01:27.4]} 33.
Be3 {[%clk 0:01:29.7]} 33... Nd6 {[%clk 0:01:26.2]} 34. Ra7 {[%clk 0:01:25.5]}
34... Nf5 {[%clk 0:01:23.4]} 35. Bf4 {[%clk 0:01:23.4]} 35... Re2 {[%clk
0:01:20.7]} 36. Rb7 {[%clk 0:01:19.8]} 36... Re4 {[%clk 0:01:18.9]} 37. Bd2
{[%clk 0:01:14.1]} 37... Nd4 {[%clk 0:01:15.5]} 38. f3 {[%clk 0:01:08.2]} 38...
Re2 {[%clk 0:01:08.9]} 39. Bc3 {[%clk 0:01:08.5]} 39... Nf5 {[%clk 0:01:07.3]}
40. Rxb5 {[%clk 0:01:07.8]} 40... Nh4 {[%clk 0:01:06.5]} 41. Rg5 {[%clk
0:00:50.2]} 41... Ra2 {[%clk 0:00:57.7]} 42. Bb4 {[%clk 0:00:47.6]} 42... Kh6
{[%clk 0:00:54.7]} 43. Rg4 {[%clk 0:00:48.1]} 43... Nf5 {[%clk 0:00:45.2]} 44.
Bc5 {[%clk 0:00:43.7]} 44... g5 {[%clk 0:00:41.2]} 45. a4 {[%clk 0:00:37.9]}
45... Rc2 {[%clk 0:00:32]} 46. Bb6 {[%clk 0:00:38.1]} 46... Ra2 {[%clk
0:00:29.5]} 47. a5 {[%clk 0:00:38.6]} 47... Kh5 {[%clk 0:00:29.2]} 48. Re4
{[%clk 0:00:36.3]} 48... Nh4 {[%clk 0:00:28.3]} 49. Bf2 {[%clk 0:00:36.8]} 49...
Rxa5 {[%clk 0:00:24.9]} 50. Re8 {[%clk 0:00:35.1]} 50... Ra1+ {[%clk 0:00:22.4]}
51. Kh2 {[%clk 0:00:35.7]} 51... Nf5 {[%clk 0:00:18]} 52. g4+ {[%clk 0:00:35.2]}
52... Kg6 {[%clk 0:00:18.2]} 53. gxf5+ {[%clk 0:00:35.6]} 53... Kxf5 {[%clk
0:00:18.8]} 54. Kg2 {[%clk 0:00:35.2]} 54... Ra2 {[%clk 0:00:18.3]} 55. Rf8+
{[%clk 0:00:35.5]} 55... Kg6 {[%clk 0:00:18.5]} 56. Kg3 {[%clk 0:00:35.5]} 56...
Ra4 {[%clk 0:00:17.6]} 57. Rb8 {[%clk 0:00:35.2]} 57... Rc4 {[%clk 0:00:17.2]}
58. Rb5 {[%clk 0:00:35.3]} 58... Rc3 {[%clk 0:00:16.1]} 59. Bd4 {[%clk 0:00:34]}
59... Rd3 {[%clk 0:00:16.2]} 60. Bb2 {[%clk 0:00:32.2]} 60... Rd7 {[%clk
0:00:14.1]} 61. Bc1 {[%clk 0:00:31.5]} 61... g4 {[%clk 0:00:13.7]} 62. hxg4
{[%clk 0:00:31.3]} 62... Kf7 {[%clk 0:00:13.8]} 63. Bb2 {[%clk 0:00:30.8]} 63...
g6 {[%clk 0:00:13.8]} 64. Rb6 {[%clk 0:00:30.2]} 64... Ra7 {[%clk 0:00:12.5]}
65. Rf6+ {[%clk 0:00:30.2]} 1-0

[Event "*** SCC Grand Prix: Titled Tuesday Blitz"]
[Site "Chess.com"]
[Date "2020.10.06"]
[Round "4"]
[White "Susal_De_Silva"]
[Black "tsvet2005"]
[Result "0-1"]
[WhiteElo "2477"]
[BlackElo "2680"]
[TimeControl "180+1"]
[EndTime "10:39:40 PDT"]
[Termination "tsvet2005 won by resignation"]

1. e4 {[%clk 0:03:00.9]} 1... c5 {[%clk 0:02:59.9]} 2. Nf3 {[%clk 0:03:00.9]}
2... d6 {[%clk 0:03:00.1]} 3. Bb5+ {[%clk 0:03:01]} 3... Nd7 {[%clk 0:02:59.8]}
4. O-O {[%clk 0:03:01.1]} 4... a6 {[%clk 0:02:57.5]} 5. Bd3 {[%clk 0:03:01.3]}
5... e6 {[%clk 0:02:56.7]} 6. Re1 {[%clk 0:03:00.6]} 6... Ngf6 {[%clk
0:02:54.9]} 7. a4 {[%clk 0:03:00.9]} 7... Be7 {[%clk 0:02:52.1]} 8. c3 {[%clk
0:03:01.4]} 8... O-O {[%clk 0:02:50.6]} 9. Bc2 {[%clk 0:03:01.9]} 9... b6 {[%clk
0:02:50.3]} 10. d4 {[%clk 0:03:02.2]} 10... Bb7 {[%clk 0:02:50.1]} 11. Nbd2
{[%clk 0:02:56.4]} 11... Rc8 {[%clk 0:02:50.2]} 12. Nf1 {[%clk 0:02:55.8]} 12...
Qc7 {[%clk 0:02:48.6]} 13. d5 {[%clk 0:02:52.7]} 13... exd5 {[%clk 0:02:13.6]}
14. exd5 {[%clk 0:02:53.6]} 14... Rfe8 {[%clk 0:02:12.2]} 15. c4 {[%clk
0:02:48.1]} 15... b5 {[%clk 0:02:09.4]} 16. axb5 {[%clk 0:02:47.4]} 16... axb5
{[%clk 0:02:10.3]} 17. b3 {[%clk 0:02:46.5]} 17... Bf8 {[%clk 0:02:03.9]} 18.
Bb2 {[%clk 0:02:40.4]} 18... Rxe1 {[%clk 0:01:50.6]} 19. Qxe1 {[%clk 0:02:41.3]}
19... Re8 {[%clk 0:01:49.4]} 20. Qd2 {[%clk 0:01:58.2]} 20... g6 {[%clk
0:01:41.7]} 21. Ne3 {[%clk 0:01:54.7]} 21... Bg7 {[%clk 0:01:41]} 22. Bc3 {[%clk
0:01:22.1]} 22... Qb8 {[%clk 0:01:35.3]} 23. h3 {[%clk 0:01:14.9]} 23... Nb6
{[%clk 0:01:34]} 24. Bd3 {[%clk 0:01:10.9]} 24... b4 {[%clk 0:01:23]} 25. Bb2
{[%clk 0:01:08]} 25... Qc7 {[%clk 0:01:23.2]} 26. Re1 {[%clk 0:01:04.8]} 26...
Nbd7 {[%clk 0:01:20.5]} 27. Nh2 {[%clk 0:00:55.7]} 27... Ne5 {[%clk 0:01:19.2]}
28. Bxe5 {[%clk 0:00:51.1]} 28... Rxe5 {[%clk 0:01:18.2]} 29. Neg4 {[%clk
0:00:49.4]} 29... Rxe1+ {[%clk 0:01:14.2]} 30. Qxe1 {[%clk 0:00:50.3]} 30... Qd7
{[%clk 0:01:10]} 31. Nxf6+ {[%clk 0:00:48.2]} 31... Bxf6 {[%clk 0:01:10.9]} 32.
Ng4 {[%clk 0:00:48.1]} 32... Bg7 {[%clk 0:01:11.2]} 33. Qe3 {[%clk 0:00:46]}
33... h5 {[%clk 0:01:06.9]} 34. Nh2 {[%clk 0:00:42.4]} 34... Bd4 {[%clk
0:01:06.6]} 35. Qe4 {[%clk 0:00:40.8]} 35... Bc8 {[%clk 0:01:02.4]} 36. Nf3
{[%clk 0:00:40.7]} 36... Bg7 {[%clk 0:01:01.6]} 37. Qe2 {[%clk 0:00:38.2]} 37...
Qd8 {[%clk 0:01:00.2]} 38. Nd2 {[%clk 0:00:30]} 38... Bd7 {[%clk 0:00:49.5]} 39.
Ne4 {[%clk 0:00:29.8]} 39... Qe7 {[%clk 0:00:49.5]} 40. Ng3 {[%clk 0:00:23.2]}
40... Qg5 {[%clk 0:00:45.6]} 41. Qe3 {[%clk 0:00:20.5]} 41... Qf6 {[%clk
0:00:43]} 42. Ne4 {[%clk 0:00:17.1]} 42... Qa1+ {[%clk 0:00:42.3]} 43. Kh2
{[%clk 0:00:17.5]} 43... Be5+ {[%clk 0:00:42]} 44. g3 {[%clk 0:00:15.6]} 44...
h4 {[%clk 0:00:40.8]} 45. Qe2 {[%clk 0:00:08.9]} 45... hxg3+ {[%clk 0:00:39.8]}
46. fxg3 {[%clk 0:00:09.8]} 46... Bd4 {[%clk 0:00:38.8]} 47. Nf2 {[%clk
0:00:06.1]} 47... Qc3 {[%clk 0:00:33.6]} 48. Kg2 {[%clk 0:00:02.2]} 48... Qxb3
{[%clk 0:00:32.9]} 49. Bxg6 {[%clk 0:00:01.7]} 49... Bxf2 {[%clk 0:00:20.5]} 50.
Kxf2 {[%clk 0:00:01.3]} 50... fxg6 {[%clk 0:00:20.6]} 51. Qe7 {[%clk 0:00:02.2]}
51... Qb2+ {[%clk 0:00:20.5]} 52. Kf3 {[%clk 0:00:02.8]} 52... Qg7 {[%clk
0:00:21.2]} 53. Qd8+ {[%clk 0:00:02.7]} 53... Qf8+ {[%clk 0:00:19.7]} 54. Qxf8+
{[%clk 0:00:03]} 54... Kxf8 {[%clk 0:00:20.6]} 0-1

[Event "*** SCC Grand Prix: Titled Tuesday Blitz"]
[Site "Chess.com"]
[Date "2020.10.06"]
[Round "4"]
[White "731291"]
[Black "Shuvalov"]
[Result "1-0"]
[WhiteElo "2655"]
[BlackElo "2421"]
[TimeControl "180+1"]
[EndTime "10:39:41 PDT"]
[Termination "731291 won by checkmate"]

1. e4 {[%clk 0:03:00.9]} 1... e6 {[%clk 0:02:58.2]} 2. d4 {[%clk 0:03:00.6]}
2... d5 {[%clk 0:02:58.4]} 3. Bd3 {[%clk 0:03:01.2]} 3... c5 {[%clk 0:02:57.8]}
4. exd5 {[%clk 0:03:01.2]} 4... exd5 {[%clk 0:02:58.7]} 5. Nf3 {[%clk
0:03:01.3]} 5... c4 {[%clk 0:02:58.3]} 6. Be2 {[%clk 0:03:01]} 6... Nf6 {[%clk
0:02:57.9]} 7. O-O {[%clk 0:03:00.8]} 7... Be7 {[%clk 0:02:58.2]} 8. b3 {[%clk
0:03:00.1]} 8... cxb3 {[%clk 0:02:56.3]} 9. axb3 {[%clk 0:03:01]} 9... O-O
{[%clk 0:02:55.8]} 10. c4 {[%clk 0:03:00.3]} 10... Nc6 {[%clk 0:02:55.2]} 11.
Nc3 {[%clk 0:02:57.6]} 11... Bf5 {[%clk 0:02:53.6]} 12. Bg5 {[%clk 0:02:56.5]}
12... Nb4 {[%clk 0:02:48.7]} 13. Qd2 {[%clk 0:02:27.7]} 13... Re8 {[%clk
0:02:35.3]} 14. Rac1 {[%clk 0:02:09.7]} 14... a5 {[%clk 0:02:19.1]} 15. Ne5
{[%clk 0:02:09]} 15... h6 {[%clk 0:02:07.7]} 16. Bxf6 {[%clk 0:02:04.2]} 16...
Bxf6 {[%clk 0:02:05.9]} 17. f4 {[%clk 0:02:03.9]} 17... dxc4 {[%clk 0:01:36.9]}
18. Bxc4 {[%clk 0:01:45.5]} 18... Be6 {[%clk 0:01:34.6]} 19. d5 {[%clk
0:01:39.2]} 19... Bf5 {[%clk 0:01:26.7]} 20. Rfe1 {[%clk 0:01:00.8]} 20... Qd6
{[%clk 0:01:20.6]} 21. Nb5 {[%clk 0:00:58.9]} 21... Qb6+ {[%clk 0:01:15.9]} 22.
Kh1 {[%clk 0:00:58.5]} 22... Rad8 {[%clk 0:01:10.6]} 23. d6 {[%clk 0:00:56.9]}
23... Be6 {[%clk 0:01:07.1]} 24. Nc7 {[%clk 0:00:40.7]} 24... Rxd6 {[%clk
0:00:43.7]} 25. Qxd6 {[%clk 0:00:32.3]} 25... Qxd6 {[%clk 0:00:43.6]} 26. Nxe8
{[%clk 0:00:32.8]} 26... Qe7 {[%clk 0:00:39.1]} 27. Nxf7 {[%clk 0:00:31.6]}
27... Qxe8 {[%clk 0:00:28.9]} 28. Rxe6 {[%clk 0:00:29.3]} 28... Qb8 {[%clk
0:00:19.9]} 29. Rce1 {[%clk 0:00:27.9]} 29... Kh7 {[%clk 0:00:19.2]} 30. g3
{[%clk 0:00:21.6]} 30... Qc7 {[%clk 0:00:19.4]} 31. Nd6 {[%clk 0:00:19.4]} 31...
Qc6+ {[%clk 0:00:18.6]} 32. Ne4 {[%clk 0:00:16.7]} 32... Qc7 {[%clk 0:00:18.1]}
33. Nxf6+ {[%clk 0:00:09.9]} 33... gxf6 {[%clk 0:00:17]} 34. Re7+ {[%clk
0:00:10.3]} 34... Qxe7 {[%clk 0:00:17.3]} 35. Rxe7+ {[%clk 0:00:11.2]} 35... Kg6
{[%clk 0:00:18.2]} 36. Rxb7 {[%clk 0:00:11.8]} 36... Nc2 {[%clk 0:00:17.9]} 37.
Ra7 {[%clk 0:00:11.6]} 37... Ne3 {[%clk 0:00:17.9]} 38. Rxa5 {[%clk 0:00:11.8]}
38... f5 {[%clk 0:00:16.3]} 39. Ra6+ {[%clk 0:00:11]} 39... Kh5 {[%clk
0:00:16.3]} 40. Be2+ {[%clk 0:00:11.5]} 40... Ng4 {[%clk 0:00:16.1]} 41. Bxg4+
{[%clk 0:00:09.5]} 41... fxg4 {[%clk 0:00:14.2]} 42. f5 {[%clk 0:00:09.7]} 42...
Kg5 {[%clk 0:00:14.1]} 43. f6 {[%clk 0:00:10.6]} 43... Kg6 {[%clk 0:00:14.5]}
44. f7+ {[%clk 0:00:11.5]} 44... Kxf7 {[%clk 0:00:14.2]} 45. Rxh6 {[%clk
0:00:11.3]} 45... Kg7 {[%clk 0:00:15.1]} 46. Ra6 {[%clk 0:00:12]} 46... Kf7
{[%clk 0:00:16]} 47. b4 {[%clk 0:00:12.9]} 47... Ke7 {[%clk 0:00:16.1]} 48. b5
{[%clk 0:00:13.8]} 48... Kd7 {[%clk 0:00:17]} 49. Rc6 {[%clk 0:00:14.7]} 49...
Kd8 {[%clk 0:00:16]} 50. h4 {[%clk 0:00:15.6]} 50... gxh3 {[%clk 0:00:15.1]} 51.
g4 {[%clk 0:00:16.5]} 51... Kd7 {[%clk 0:00:15.3]} 52. g5 {[%clk 0:00:17.4]}
52... h2 {[%clk 0:00:15.7]} 53. g6 {[%clk 0:00:18.3]} 53... Ke7 {[%clk
0:00:16.2]} 54. b6 {[%clk 0:00:18]} 54... Kd7 {[%clk 0:00:16.4]} 55. Rc7+ {[%clk
0:00:16.6]} 55... Ke6 {[%clk 0:00:16.5]} 56. g7 {[%clk 0:00:17]} 56... Kf5
{[%clk 0:00:17.4]} 57. g8=Q {[%clk 0:00:17.4]} 57... Kf4 {[%clk 0:00:18.3]} 58.
Qc4+ {[%clk 0:00:15.2]} 58... Ke3 {[%clk 0:00:19.2]} 59. Re7+ {[%clk 0:00:15.1]}
59... Kf2 {[%clk 0:00:20.1]} 60. Qf7+ {[%clk 0:00:14.6]} 60... Kg3 {[%clk
0:00:21]} 61. Re3+ {[%clk 0:00:13.8]} 61... Kh4 {[%clk 0:00:21.9]} 62. Qf4+
{[%clk 0:00:13.4]} 62... Kh5 {[%clk 0:00:21.9]} 63. Rh3+ {[%clk 0:00:13.8]}
63... Kg6 {[%clk 0:00:22.8]} 64. Rg3+ {[%clk 0:00:14.2]} 64... Kh5 {[%clk
0:00:22.6]} 65. Qg5# {[%clk 0:00:14.4]} 1-0